{"text_format":"1","workbook":"xlsx","n_sheets":2,"sheets":["Data","Table"],"not_rendered":{"charts":0,"images":0,"macros":1,"external_links":0,"defined_names":0,"comments":0,"pivot_tables":0},"unopened":[],"bounds":{"document_bytes":16777216,"sheet_cells":100000,"rows_first":2000,"rows_last":500,"rows_between":2000,"halvings":0,"cell_chars":16384,"cell_head_chars":4096},"cells_cut":0,"cells_raw":0,"read":"whole","date_system":"1900"}

{"sheet":"Data","index":0,"n_rows":1,"n_cols":41,"rows_kept":1,"cut":false,"hidden":false,"merged":[]}
["Case Number","Region","Province","Station","Level","Branch","Title","Case Category","Type of Civil Action","Nature (Criminal Action)","Nature (Ordinary Civil Action)","Nature (Special Civil Action)","Nature (Special Proceeding)","Nature (Commercial)","Nature (Admiralty)","Status","Date closed/decided","Disposal status (Criminal)","Disposal status (Civil)","Name of PDL","Gender","Personal status (Criminal)","CICL Status","Date of detention","Release Status","Place of detention","Stage of case (Criminal-Beginning)","Stage of case (Criminal-End)","Stage of Case (Ordinary Civil Action)","Stage of Case (Special Civil Action)","Case Event (Ordinary Civil Action)","Case Event End (Ordinary Civil Action)","Case Event (Special Civil Action)","Case Event End (Special Civil Action)","Case Event (Special Proceeding)","Case Event End (Special Proceeding)","Case Event (Small Claims)","Case Event End (Small Claims)","Date of videoconference","Result of videoconference","Outcome"]

{"sheet":"Table","index":1,"n_rows":32,"n_cols":6,"rows_kept":32,"cut":false,"hidden":false,"merged":[]}
["Pleading",{"$f":"COUNTIF(Data!AC1:'Data'!AC1048569, \"Pleading\")","v":0}]
["Pre-hearing",{"$f":"COUNTIF(Data!AD1:'Data'!AD1048569, \"Pre-hearing\")","v":0}]
["Pre-arraignment",{"$f":"F23","v":0},null,null,"Pre-trial",{"$f":"COUNTIF(Data!AD1:'Data'!AD1048568, \"Pre-trial\")","v":0}]
["Arraignment & Pre-trial",{"$f":"F26","v":0},null,null,"Pre-trial",{"$f":"COUNTIF(Data!AC1:'Data'!AC1048569, \"Pre-trial\")","v":0}]
["Pre-trial",{"$f":"F5","v":0},null,null,"Pre-trial",{"$f":"SUM(F3:F4)","v":0}]
["Bail Hearing",{"$f":"F29","v":0},null,null,"Trial",{"$f":"COUNTIF(Data!AB1:'Data'!AB1048568, \"Trial Proper\")","v":0}]
["Trial Proper",{"$f":"F10","v":0},null,null,"Trial",{"$f":"COUNTIF(Data!AA1:'Data'!AA1048569, \"Trial Proper\")","v":0}]
["Judgment",{"$f":"F14","v":0},null,null,"Trial",{"$f":"COUNTIF(Data!AC1:'Data'!AC1048569, \"Trial Proper\")","v":0}]
["Promulgation of Judgment",{"$f":"F32","v":0},null,null,"Trial",{"$f":"COUNTIF(Data!AD1:'Data'!AD1048569, \"Trial Proper\")","v":0}]
["Post-judgment",{"$f":"F19","v":0},null,null,"Trial",{"$f":"SUM(F6:F9)","v":0}]
["Number of hearings conducted",{"$f":"SUM(B1:B10)","v":0}]
[null,null,null,null,"Judgment",{"$f":"COUNTIF(Data!AC1:'Data'!AC1048569, \"Judgment\")","v":0}]
[null,null,null,null,"Judgment",{"$f":"COUNTIF(Data!AD1:'Data'!AD1048569, \"Judgment\")","v":0}]
["Success",{"$f":"COUNTIF(Data!AN1:'Data'!AN1048568, \"Success\")","v":0},null,null,"Judgment",{"$f":"SUM(F12:F13)","v":0}]
["Failure",{"$f":"COUNTIF(Data!AN1:'Data'!AN1048568, \"Failure\")","v":0},null,null,"Post-judgment",{"$f":"COUNTIF(Data!AB1:'Data'!AB1048568, \"Post-judgment\")","v":0}]
["Interrupted",{"$f":"COUNTIF(Data!AN1:'Data'!AN1048569, \"Interrupted\")","v":0},null,null,"Post-judgment",{"$f":"COUNTIF(Data!AA1:'Data'!AA1048569, \"Post-judgment\")","v":0}]
["Number of hearings conducted",{"$f":"SUM(B14:B16)","v":0},null,null,"Post-judgment",{"$f":"COUNTIF(Data!AC1:'Data'!AC1048569, \"Post-judgment\")","v":0}]
[null,null,null,null,"Post-judgment",{"$f":"COUNTIF(Data!AD1:'Data'!AD1048569, \"Post-judgment\")","v":0}]
[null,null,null,null,"Post-judgment",{"$f":"SUM(F15:F18)","v":0}]
[]
[null,null,null,null,"Pre-arraignment",{"$f":"COUNTIF(Data!AA1:'Data'!AA1048569, \"Pre-arraignment\")","v":0}]
[null,null,null,null,"Pre-arraignment",{"$f":"COUNTIF(Data!AB1:'Data'!AB1048570, \"Pre-arraignment\")","v":0}]
[null,null,null,null,"Pre-arraignment",{"$f":"SUM(F21:F22)","v":0}]
[null,null,null,null,"Arraignment & Pre-trial",{"$f":"COUNTIF(Data!AA1:'Data'!AA1048569, \"Arraignment & Pre-trial\")","v":0}]
[null,null,null,null,"Arraignment & Pre-trial",{"$f":"COUNTIF(Data!AB1:'Data'!AB1048570, \"Arraignment & Pre-trial\")","v":0}]
[null,null,null,null,"Arraignment & Pre-trial",{"$f":"SUM(F24:F25)","v":0}]
[null,null,null,null,"Bail Hearing",{"$f":"COUNTIF(Data!AA1:'Data'!AA1048569, \"Bail Hearing\")","v":0}]
[null,null,null,null,"Bail Hearing",{"$f":"COUNTIF(Data!AB1:'Data'!AB1048570, \"Bail Hearing\")","v":0}]
[null,null,null,null,"Bail Hearing",{"$f":"SUM(F27:F28)","v":0}]
[null,null,null,null,"Promulgation of Judgment",{"$f":"COUNTIF(Data!AA1:'Data'!AA1048569, \"Promulgation of Judgment\")","v":0}]
[null,null,null,null,"Promulgation of Judgment",{"$f":"COUNTIF(Data!AB1:'Data'!AB1048570, \"Promulgation of Judgment\")","v":0}]
[null,null,null,null,"Promulgation of Judgment",{"$f":"SUM(F30:F31)","v":0}]